[Event "Titled Tuesday Blitz January 03 Early 2023"]
[White "Sanchez, Robert"]
[Black "Osiecki, Stanislaw"]
[WhiteFideId "2034360"]
[BlackFideId "1102990"]
[WhiteElo "1966"]
[BlackElo "2055"]
[Result "1-0"]
[Round "06"]
[TimeControl "180+2"]
[Date "2023.01.03"]
[WhiteClock "0:00:26"]
[BlackClock "0:00:01"]

1. e4 {[%clk 0:03:00]}  e6 {[%clk 0:03:00]} 2. d4 {[%clk 0:03:00]}  d5 {[%clk 0:03:00]} 3. Nc3 {[%clk 0:03:01]}  Bb4 {[%clk 0:02:59]} 4. e5 {[%clk 0:03:02]}  c5 {[%clk 0:02:55]} 5. Bd2 {[%clk 0:03:02]}  Bxc3 {[%clk 0:02:54]} 6. Bxc3 {[%clk 0:02:59]}  cxd4 {[%clk 0:02:54]} 7. Qxd4 {[%clk 0:02:56]}  Nc6 {[%clk 0:02:55]} 8. Qg4 {[%clk 0:02:56]}  g6 {[%clk 0:02:51]} 9. Nf3 {[%clk 0:02:56]}  Nge7 {[%clk 0:02:51]} 10. O-O-O {[%clk 0:02:55]}  h5 {[%clk 0:02:46]} 11. Qf4 {[%clk 0:02:51]}  Nf5 {[%clk 0:02:36]} 12. Bd3 {[%clk 0:02:45]}  Bd7 {[%clk 0:02:35]} 13. Bxf5 {[%clk 0:02:32]}  gxf5 {[%clk 0:02:35]} 14. h3 {[%clk 0:02:32]}  Qe7 {[%clk 0:02:34]} 15. Nd4 {[%clk 0:02:25]}  Nxd4 {[%clk 0:02:31]} 16. Bxd4 {[%clk 0:02:25]}  b6 {[%clk 0:02:26]} 17. Kb1 {[%clk 0:02:24]}  O-O-O {[%clk 0:02:19]} 18. Bc3 {[%clk 0:02:23]}  Kb7 {[%clk 0:02:19]} 19. Bb4 {[%clk 0:02:23]}  Qe8 {[%clk 0:02:17]} 20. Bd6 {[%clk 0:02:23]}  Bb5 {[%clk 0:02:11]} 21. b3 {[%clk 0:02:09]}  Rc8 {[%clk 0:02:10]} 22. g4 {[%clk 0:02:03]}  hxg4 {[%clk 0:02:07]} 23. hxg4 {[%clk 0:02:03]}  Rxh1 {[%clk 0:02:01]} 24. Rxh1 {[%clk 0:02:02]}  Qc6 {[%clk 0:02:01]} 25. Rc1 {[%clk 0:01:56]}  fxg4 {[%clk 0:02:01]} 26. Qxf7+ {[%clk 0:01:43]}  Ka8 {[%clk 0:02:01]} 27. Qg6 {[%clk 0:01:28]}  Qc3 {[%clk 0:01:43]} 28. Qxe6 {[%clk 0:01:20]}  d4 {[%clk 0:01:34]} 29. Bb4 {[%clk 0:01:08]}  Qc6 {[%clk 0:01:28]} 30. Qxg4 {[%clk 0:00:59]}  Bd3 {[%clk 0:01:21]} 31. Qxd4 {[%clk 0:00:58]}  Bxc2+ {[%clk 0:01:21]} 32. Kb2 {[%clk 0:00:59]}  a5 {[%clk 0:01:13]} 33. Bd6 {[%clk 0:00:51]}  a4 {[%clk 0:00:22]} 34. Qd2 {[%clk 0:00:38]}  axb3 {[%clk 0:00:13]} 35. axb3 {[%clk 0:00:38]}  Qe4 {[%clk 0:00:10]} 36. Rxc2 {[%clk 0:00:34]}  Rxc2+ {[%clk 0:00:09]} 37. Qxc2 {[%clk 0:00:35]}  Qd4+ {[%clk 0:00:09]} 38. Ka2 {[%clk 0:00:33]}  Ka7 {[%clk 0:00:04]} 39. Qc7+ {[%clk 0:00:26]}  Ka6 {[%clk 0:00:04]} 40. Qc4+ {[%clk 0:00:26]}  Qxc4 {[%clk 0:00:02]} 41. bxc4 {[%clk 0:00:27]}  Kb7 {[%clk 0:00:01]} 42. f4 {[%clk 0:00:26]} 1-0


[Site "https://www.chess.com"]

[Event "Titled Tuesday Blitz January 03 Early 2023"]
[White "Van den Dikkenberg, Erik"]
[Black "Herman, Daniel"]
[WhiteFideId "1005880"]
[BlackFideId "30935008"]
[WhiteElo "2091"]
[BlackElo "1956"]
[Result "0-1"]
[Round "06"]
[TimeControl "180+2"]
[Date "2023.01.03"]
[WhiteClock "0:00:04"]
[BlackClock "0:00:15"]

1. e4 {[%clk 0:03:00]}  g6 {[%clk 0:03:00]} 2. d4 {[%clk 0:03:00]}  Bg7 {[%clk 0:03:01]} 3. Nc3 {[%clk 0:03:00]}  d6 {[%clk 0:03:02]} 4. Bf4 {[%clk 0:03:00]}  c6 {[%clk 0:02:59]} 5. Qd2 {[%clk 0:02:56]}  e5 {[%clk 0:02:51]} 6. dxe5 {[%clk 0:02:55]}  dxe5 {[%clk 0:02:52]} 7. Qxd8+ {[%clk 0:02:54]}  Kxd8 {[%clk 0:02:53]} 8. Bg5+ {[%clk 0:02:53]}  f6 {[%clk 0:02:42]} 9. O-O-O+ {[%clk 0:02:52]}  Kc7 {[%clk 0:02:41]} 10. Be3 {[%clk 0:02:51]}  Be6 {[%clk 0:02:40]} 11. Nf3 {[%clk 0:02:44]}  Nd7 {[%clk 0:02:34]} 12. Nd2 {[%clk 0:02:43]}  b5 {[%clk 0:02:27]} 13. Kb1 {[%clk 0:02:33]}  Nh6 {[%clk 0:02:16]} 14. f3 {[%clk 0:02:13]}  Nf7 {[%clk 0:02:15]} 15. Nb3 {[%clk 0:01:54]}  Bf8 {[%clk 0:02:01]} 16. Be2 {[%clk 0:01:44]}  a5 {[%clk 0:01:59]} 17. Rd2 {[%clk 0:01:34]}  a4 {[%clk 0:01:58]} 18. Nc1 {[%clk 0:01:32]}  Bh6 {[%clk 0:01:52]} 19. Bxh6 {[%clk 0:01:28]}  Nxh6 {[%clk 0:01:53]} 20. Rhd1 {[%clk 0:01:28]}  Rhd8 {[%clk 0:01:44]} 21. a3 {[%clk 0:01:13]}  Nf7 {[%clk 0:01:41]} 22. Nd3 {[%clk 0:01:08]}  f5 {[%clk 0:01:18]} 23. Nb4 {[%clk 0:01:06]}  Nf6 {[%clk 0:01:06]} 24. Rxd8 {[%clk 0:00:45]}  Nxd8 {[%clk 0:01:07]} 25. h3 {[%clk 0:00:23]}  Nh5 {[%clk 0:00:56]} 26. Bf1 {[%clk 0:00:19]}  Nf7 {[%clk 0:00:52]} 27. exf5 {[%clk 0:00:18]}  gxf5 {[%clk 0:00:49]} 28. Re1 {[%clk 0:00:18]}  Nf6 {[%clk 0:00:36]} 29. g4 {[%clk 0:00:18]}  Rd8 {[%clk 0:00:29]} 30. gxf5 {[%clk 0:00:16]}  Bxf5 {[%clk 0:00:30]} 31. f4 {[%clk 0:00:13]}  exf4 {[%clk 0:00:25]} 32. Re7+ {[%clk 0:00:12]}  Rd7 {[%clk 0:00:25]} 33. Re1 {[%clk 0:00:10]}  Ng5 {[%clk 0:00:16]} 34. Bg2 {[%clk 0:00:10]}  f3 {[%clk 0:00:15]} 35. Bf1 {[%clk 0:00:10]}  Nfe4 {[%clk 0:00:15]} 36. Nxe4 {[%clk 0:00:10]}  Nxe4 {[%clk 0:00:16]} 37. Bd3 {[%clk 0:00:10]}  Ng3 {[%clk 0:00:14]} 38. Bxf5 {[%clk 0:00:08]}  Nxf5 {[%clk 0:00:15]} 39. Rf1 {[%clk 0:00:08]}  Nh4 {[%clk 0:00:15]} 40. Nd3 {[%clk 0:00:08]}  Rg7 {[%clk 0:00:15]} 41. Ne5 {[%clk 0:00:08]}  Rg3 {[%clk 0:00:14]} 42. Rd1 {[%clk 0:00:07]}  Rxh3 {[%clk 0:00:14]} 43. Rd7+ {[%clk 0:00:07]}  Kb6 {[%clk 0:00:14]} 44. Rxh7 {[%clk 0:00:07]}  f2 {[%clk 0:00:13]} 45. Rf7 {[%clk 0:00:04]}  Rh1+ {[%clk 0:00:13]} 46. Ka2 {[%clk 0:00:04]}  f1=Q {[%clk 0:00:14]} 47. Rxf1 {[%clk 0:00:04]}  Rxf1 {[%clk 0:00:15]} 0-1


[Site "https://www.chess.com"]

[Event "Titled Tuesday Blitz January 03 Early 2023"]
[White "Quinones Garcia, Santiago"]
[Black "De Arruda, Leandro Formes"]
[WhiteFideId "4408497"]
[BlackFideId "22722009"]
[WhiteElo "2248"]
[BlackElo "1980"]
[Result "1-0"]
[Round "06"]
[TimeControl "180+2"]
[Date "2023.01.03"]
[WhiteClock "0:01:18"]
[BlackClock "0:00:11"]

1. d4 {[%clk 0:02:55]}  d5 {[%clk 0:02:59]} 2. c4 {[%clk 0:02:55]}  e6 {[%clk 0:02:59]} 3. Nc3 {[%clk 0:02:55]}  Nf6 {[%clk 0:03:00]} 4. Bg5 {[%clk 0:02:55]}  Be7 {[%clk 0:03:00]} 5. cxd5 {[%clk 0:02:55]}  exd5 {[%clk 0:03:00]} 6. e4 {[%clk 0:02:56]}  Nxe4 {[%clk 0:02:54]} 7. Bxe7 {[%clk 0:02:54]}  Qxe7 {[%clk 0:02:55]} 8. Be2 {[%clk 0:02:54]}  c6 {[%clk 0:02:52]} 9. Nf3 {[%clk 0:02:54]}  O-O {[%clk 0:02:51]} 10. O-O {[%clk 0:02:54]}  Bg4 {[%clk 0:02:49]} 11. h3 {[%clk 0:02:54]}  Bh5 {[%clk 0:02:49]} 12. Re1 {[%clk 0:02:53]}  Nd7 {[%clk 0:02:49]} 13. Qb3 {[%clk 0:02:50]}  Rab8 {[%clk 0:02:45]} 14. Rad1 {[%clk 0:02:49]}  f5 {[%clk 0:02:44]} 15. Ne5 {[%clk 0:02:30]}  Bxe2 {[%clk 0:02:41]} 16. Rxe2 {[%clk 0:02:31]}  Nxe5 {[%clk 0:02:27]} 17. dxe5 {[%clk 0:02:32]}  Kh8 {[%clk 0:02:22]} 18. f3 {[%clk 0:02:21]}  Qc5+ {[%clk 0:02:15]} 19. Kh2 {[%clk 0:02:19]}  Ng5 {[%clk 0:02:00]} 20. f4 {[%clk 0:02:16]}  Ne6 {[%clk 0:01:57]} 21. Na4 {[%clk 0:01:55]}  Qa5 {[%clk 0:01:42]} 22. Rf2 {[%clk 0:01:51]}  b5 {[%clk 0:01:36]} 23. Nc3 {[%clk 0:01:51]}  Nc5 {[%clk 0:01:33]} 24. Qc2 {[%clk 0:01:50]}  Ne4 {[%clk 0:01:28]} 25. Nxe4 {[%clk 0:01:49]}  fxe4 {[%clk 0:01:29]} 26. Qxc6 {[%clk 0:01:44]}  e3 {[%clk 0:01:18]} 27. Re2 {[%clk 0:01:42]}  Rxf4 {[%clk 0:01:06]} 28. Qxd5 {[%clk 0:01:39]}  h6 {[%clk 0:00:49]} 29. Rxe3 {[%clk 0:01:37]}  Rf2 {[%clk 0:00:44]} 30. e6 {[%clk 0:01:34]}  Qc7+ {[%clk 0:00:38]} 31. Qd6 {[%clk 0:01:31]}  Qb7 {[%clk 0:00:35]} 32. Qg3 {[%clk 0:01:23]}  Rf5 {[%clk 0:00:18]} 33. Rd7 {[%clk 0:01:21]}  Rg5 {[%clk 0:00:12]} 34. Rxb7 {[%clk 0:01:19]}  Rxb7 {[%clk 0:00:12]} 35. Qf4 {[%clk 0:01:18]}  Kh7 {[%clk 0:00:11]} 36. e7 {[%clk 0:01:18]} 1-0


[Site "https://www.chess.com"]

[Event "Titled Tuesday Blitz January 03 Early 2023"]
[White "Forgacs, Attila Jr."]
[Black "Lakshmi C"]
[WhiteFideId "773654"]
[BlackFideId "25035347"]
[WhiteElo "2264"]
[BlackElo "1928"]
[Result "1-0"]
[Round "06"]
[TimeControl "180+2"]
[Date "2023.01.03"]
[WhiteClock "0:00:04"]
[BlackClock "0:00:01"]

1. e4 {[%clk 0:02:59]}  c5 {[%clk 0:02:55]} 2. d3 {[%clk 0:02:59]}  Nc6 {[%clk 0:02:55]} 3. g3 {[%clk 0:03:00]}  g6 {[%clk 0:02:54]} 4. Bg2 {[%clk 0:03:00]}  Bg7 {[%clk 0:02:54]} 5. f4 {[%clk 0:03:01]}  e6 {[%clk 0:02:54]} 6. Nf3 {[%clk 0:03:02]}  Nge7 {[%clk 0:02:53]} 7. O-O {[%clk 0:03:02]}  d5 {[%clk 0:02:52]} 8. e5 {[%clk 0:03:03]}  b6 {[%clk 0:02:50]} 9. c3 {[%clk 0:03:03]}  Bb7 {[%clk 0:02:50]} 10. a4 {[%clk 0:03:04]}  Qc7 {[%clk 0:02:49]} 11. Be3 {[%clk 0:03:04]}  Nf5 {[%clk 0:02:42]} 12. Bf2 {[%clk 0:03:04]}  h5 {[%clk 0:02:40]} 13. Na3 {[%clk 0:03:04]}  a6 {[%clk 0:02:40]} 14. h3 {[%clk 0:03:03]}  Nfe7 {[%clk 0:01:52]} 15. Nc2 {[%clk 0:03:02]}  f6 {[%clk 0:01:49]} 16. exf6 {[%clk 0:03:01]}  Bxf6 {[%clk 0:01:49]} 17. Re1 {[%clk 0:03:02]}  e5 {[%clk 0:01:16]} 18. fxe5 {[%clk 0:03:01]}  Nxe5 {[%clk 0:01:16]} 19. Nxe5 {[%clk 0:03:02]}  Bxe5 {[%clk 0:01:16]} 20. Qe2 {[%clk 0:03:01]}  Bd6 {[%clk 0:01:14]} 21. Qe6 {[%clk 0:02:49]}  Kd8 {[%clk 0:01:14]} 22. Qf6 {[%clk 0:02:36]}  Re8 {[%clk 0:01:06]} 23. Re6 {[%clk 0:02:24]}  Kd7 {[%clk 0:01:03]} 24. Rae1 {[%clk 0:02:10]}  Rad8 {[%clk 0:01:01]} 25. h4 {[%clk 0:02:01]}  Kc8 {[%clk 0:01:01]} 26. Bh3 {[%clk 0:01:44]}  Kb8 {[%clk 0:01:01]} 27. Qg5 {[%clk 0:01:31]}  Bc8 {[%clk 0:00:21]} 28. a5 {[%clk 0:01:22]}  Bxe6 {[%clk 0:00:19]} 29. axb6 {[%clk 0:01:16]}  Qxb6 {[%clk 0:00:18]} 30. Rxe6 {[%clk 0:01:16]}  Qxb2 {[%clk 0:00:16]} 31. Re2 {[%clk 0:01:07]}  Qxc3 {[%clk 0:00:15]} 32. Bg2 {[%clk 0:00:48]}  Qxd3 {[%clk 0:00:12]} 33. Bf3 {[%clk 0:00:44]}  Nf5 {[%clk 0:00:11]} 34. Ne1 {[%clk 0:00:38]}  Qb5 {[%clk 0:00:07]} 35. Rxe8 {[%clk 0:00:36]}  Qxe8 {[%clk 0:00:07]} 36. Bxd5 {[%clk 0:00:34]}  Bc7 {[%clk 0:00:07]} 37. Bg2 {[%clk 0:00:30]}  Nd4 {[%clk 0:00:06]} 38. Qxc5 {[%clk 0:00:24]}  Qe5 {[%clk 0:00:05]} 39. Qb4+ {[%clk 0:00:18]}  Nb5 {[%clk 0:00:05]} 40. Kh2 {[%clk 0:00:12]}  Qd6 {[%clk 0:00:06]} 41. Qe4 {[%clk 0:00:11]}  Kc8 {[%clk 0:00:04]} 42. Bh3+ {[%clk 0:00:09]}  Kb8 {[%clk 0:00:04]} 43. Bg2 {[%clk 0:00:09]}  Kc8 {[%clk 0:00:04]} 44. Qb7+ {[%clk 0:00:10]}  Kd7 {[%clk 0:00:04]} 45. Bh3+ {[%clk 0:00:11]}  Ke8 {[%clk 0:00:04]} 46. Qe4+ {[%clk 0:00:11]}  Kf7 {[%clk 0:00:04]} 47. Nf3 {[%clk 0:00:08]}  Kg7 {[%clk 0:00:03]} 48. Ng5 {[%clk 0:00:06]}  Nd4 {[%clk 0:00:01]} 49. Bxd4+ {[%clk 0:00:05]}  Kg8 {[%clk 0:00:01]} 50. Bf2 {[%clk 0:00:04]} 1-0


[Site "https://www.chess.com"]

[Event "Titled Tuesday Blitz January 03 Early 2023"]
[White "Melikhov, Evgeny V."]
[Black "Hartikainen, Jarmo"]
[WhiteFideId "4122046"]
[BlackFideId "503134"]
[WhiteElo "2269"]
[BlackElo "2108"]
[Result "1-0"]
[Round "06"]
[TimeControl "180+2"]
[Date "2023.01.03"]
[WhiteClock "0:00:05"]
[BlackClock "0:00:03"]

1. d4 {[%clk 0:03:00]}  Nf6 {[%clk 0:02:59]} 2. c4 {[%clk 0:02:58]}  g6 {[%clk 0:02:58]} 3. Nc3 {[%clk 0:02:57]}  d5 {[%clk 0:02:58]} 4. cxd5 {[%clk 0:02:58]}  Nxd5 {[%clk 0:02:59]} 5. e4 {[%clk 0:02:58]}  Nxc3 {[%clk 0:02:59]} 6. bxc3 {[%clk 0:02:59]}  Bg7 {[%clk 0:02:59]} 7. Bc4 {[%clk 0:02:59]}  O-O {[%clk 0:02:59]} 8. Ne2 {[%clk 0:03:00]}  c5 {[%clk 0:03:00]} 9. Be3 {[%clk 0:03:00]}  Qc7 {[%clk 0:02:50]} 10. Rc1 {[%clk 0:02:58]}  b6 {[%clk 0:02:40]} 11. h4 {[%clk 0:02:54]}  Bb7 {[%clk 0:02:38]} 12. d5 {[%clk 0:02:28]}  Nd7 {[%clk 0:02:34]} 13. h5 {[%clk 0:02:25]}  Ne5 {[%clk 0:02:13]} 14. Bd3 {[%clk 0:02:23]}  Ng4 {[%clk 0:01:48]} 15. Bf4 {[%clk 0:02:20]}  Qd7 {[%clk 0:01:32]} 16. f3 {[%clk 0:02:05]}  Ne5 {[%clk 0:01:09]} 17. c4 {[%clk 0:02:05]}  Rae8 {[%clk 0:00:57]} 18. h6 {[%clk 0:01:38]}  Bh8 {[%clk 0:00:54]} 19. Bxe5 {[%clk 0:01:20]}  Bxe5 {[%clk 0:00:53]} 20. f4 {[%clk 0:01:20]}  Bh8 {[%clk 0:00:46]} 21. e5 {[%clk 0:00:57]}  e6 {[%clk 0:00:45]} 22. d6 {[%clk 0:00:55]}  Bxg2 {[%clk 0:00:45]} 23. Rg1 {[%clk 0:00:54]}  Qc6 {[%clk 0:00:43]} 24. Ng3 {[%clk 0:00:37]}  Bf3 {[%clk 0:00:37]} 25. Qc2 {[%clk 0:00:34]}  f5 {[%clk 0:00:33]} 26. Be2 {[%clk 0:00:25]}  Be4 {[%clk 0:00:32]} 27. Qd2 {[%clk 0:00:24]}  a6 {[%clk 0:00:30]} 28. Kf2 {[%clk 0:00:23]}  b5 {[%clk 0:00:29]} 29. cxb5 {[%clk 0:00:22]}  axb5 {[%clk 0:00:29]} 30. Qe3 {[%clk 0:00:20]}  c4 {[%clk 0:00:28]} 31. Bf3 {[%clk 0:00:20]}  Bxf3 {[%clk 0:00:28]} 32. Qxf3 {[%clk 0:00:20]}  Qxf3+ {[%clk 0:00:28]} 33. Kxf3 {[%clk 0:00:20]}  Ra8 {[%clk 0:00:29]} 34. Rg2 {[%clk 0:00:19]}  Rfd8 {[%clk 0:00:28]} 35. Rb2 {[%clk 0:00:19]}  Rab8 {[%clk 0:00:27]} 36. Rb4 {[%clk 0:00:17]}  Rb7 {[%clk 0:00:27]} 37. a4 {[%clk 0:00:17]}  Rdb8 {[%clk 0:00:26]} 38. axb5 {[%clk 0:00:17]}  Rxb5 {[%clk 0:00:25]} 39. Rxb5 {[%clk 0:00:17]}  Rxb5 {[%clk 0:00:25]} 40. Rxc4 {[%clk 0:00:18]}  Rb3+ {[%clk 0:00:26]} 41. Kf2 {[%clk 0:00:18]}  Rb2+ {[%clk 0:00:25]} 42. Ne2 {[%clk 0:00:18]}  Rb8 {[%clk 0:00:24]} 43. Rc7 {[%clk 0:00:17]}  g5 {[%clk 0:00:23]} 44. Kf3 {[%clk 0:00:13]}  gxf4 {[%clk 0:00:21]} 45. Kxf4 {[%clk 0:00:12]}  Rb4+ {[%clk 0:00:21]} 46. Kf3 {[%clk 0:00:10]}  Bxe5 {[%clk 0:00:21]} 47. Rc8+ {[%clk 0:00:09]}  Kf7 {[%clk 0:00:20]} 48. d7 {[%clk 0:00:10]}  Rb3+ {[%clk 0:00:19]} 49. Kf2 {[%clk 0:00:09]}  Bf6 {[%clk 0:00:18]} 50. d8=Q {[%clk 0:00:09]}  Bxd8 {[%clk 0:00:18]} 51. Rxd8 {[%clk 0:00:09]}  Kg6 {[%clk 0:00:19]} 52. Re8 {[%clk 0:00:09]}  Rb6 {[%clk 0:00:17]} 53. Ke3 {[%clk 0:00:07]}  Kxh6 {[%clk 0:00:17]} 54. Nf4 {[%clk 0:00:07]}  Kg5 {[%clk 0:00:15]} 55. Nxe6+ {[%clk 0:00:07]}  Kf6 {[%clk 0:00:13]} 56. Nf4 {[%clk 0:00:06]}  Rb3+ {[%clk 0:00:13]} 57. Kf2 {[%clk 0:00:06]}  Rb2+ {[%clk 0:00:13]} 58. Kf3 {[%clk 0:00:06]}  Rb3+ {[%clk 0:00:14]} 59. Ke2 {[%clk 0:00:05]}  Rb2+ {[%clk 0:00:13]} 60. Kd3 {[%clk 0:00:05]}  Rf2 {[%clk 0:00:10]} 61. Ke3 {[%clk 0:00:05]}  Rf1 {[%clk 0:00:10]} 62. Nd5+ {[%clk 0:00:04]}  Kg5 {[%clk 0:00:09]} 63. Rg8+ {[%clk 0:00:03]}  Kh4 {[%clk 0:00:08]} 64. Nf4 {[%clk 0:00:04]}  h5 {[%clk 0:00:07]} 65. Ng2+ {[%clk 0:00:03]}  Kh3 {[%clk 0:00:06]} 66. Nf4+ {[%clk 0:00:04]}  Kh2 {[%clk 0:00:05]} 67. Rh8 {[%clk 0:00:04]}  h4 {[%clk 0:00:04]} 68. Rxh4+ {[%clk 0:00:03]}  Kg3 {[%clk 0:00:04]} 69. Rh3+ {[%clk 0:00:04]}  Kg4 {[%clk 0:00:05]} 70. Rh1 {[%clk 0:00:03]}  Re1+ {[%clk 0:00:03]} 71. Rxe1 {[%clk 0:00:03]}  Kg3 {[%clk 0:00:02]} 72. Rg1+ {[%clk 0:00:03]}  Kh2 {[%clk 0:00:01]} 73. Rg2+ {[%clk 0:00:03]}  Kh1 {[%clk 0:00:02]} 74. Rg5 {[%clk 0:00:04]}  Kh2 {[%clk 0:00:02]} 75. Kf3 {[%clk 0:00:04]}  Kh1 {[%clk 0:00:02]} 76. Kf2 {[%clk 0:00:04]}  Kh2 {[%clk 0:00:03]} 77. Rh5# {[%clk 0:00:05]} 1-0


[Site "https://www.chess.com"]

[Event "Titled Tuesday Blitz January 03 Early 2023"]
[White "Qashashvili, Alexandre"]
[Black "Broca Jimenez, Fernando"]
[WhiteFideId "13600842"]
[BlackFideId "5104742"]
[WhiteElo "2505"]
[BlackElo "2075"]
[Result "1-0"]
[Round "06"]
[TimeControl "180+2"]
[Date "2023.01.03"]
[WhiteClock "0:02:05"]
[BlackClock "0:01:50"]

1. e4 {[%clk 0:02:52]}  c5 {[%clk 0:02:59]} 2. Nc3 {[%clk 0:02:51]}  g6 {[%clk 0:02:59]} 3. d3 {[%clk 0:02:52]}  Bg7 {[%clk 0:03:00]} 4. Nf3 {[%clk 0:02:52]}  Nc6 {[%clk 0:02:59]} 5. Be3 {[%clk 0:02:53]}  e6 {[%clk 0:03:00]} 6. Qd2 {[%clk 0:02:53]}  b6 {[%clk 0:02:58]} 7. Be2 {[%clk 0:02:53]}  Nge7 {[%clk 0:02:57]} 8. Bh6 {[%clk 0:02:52]}  O-O {[%clk 0:02:55]} 9. h4 {[%clk 0:02:52]}  d5 {[%clk 0:02:52]} 10. h5 {[%clk 0:02:51]}  dxe4 {[%clk 0:02:51]} 11. hxg6 {[%clk 0:02:51]}  e3 {[%clk 0:02:18]} 12. gxh7+ {[%clk 0:02:45]}  Kh8 {[%clk 0:02:18]} 13. Bxg7+ {[%clk 0:02:45]}  Kxg7 {[%clk 0:02:19]} 14. Qxe3 {[%clk 0:02:38]}  Nf5 {[%clk 0:02:14]} 15. Qe4 {[%clk 0:02:34]}  Bb7 {[%clk 0:02:08]} 16. h8=Q+ {[%clk 0:02:26]}  Rxh8 {[%clk 0:02:00]} 17. Qg4+ {[%clk 0:02:26]}  Kf8 {[%clk 0:01:56]} 18. Rxh8+ {[%clk 0:02:25]}  Ke7 {[%clk 0:01:57]} 19. Rxd8 {[%clk 0:02:24]}  Rxd8 {[%clk 0:01:58]} 20. O-O-O {[%clk 0:02:19]}  Ncd4 {[%clk 0:01:54]} 21. Nxd4 {[%clk 0:02:17]}  Nxd4 {[%clk 0:01:55]} 22. Bf3 {[%clk 0:02:13]}  Ba6 {[%clk 0:01:53]} 23. Ne4 {[%clk 0:02:08]}  f5 {[%clk 0:01:51]} 24. Qg7+ {[%clk 0:02:05]}  Ke8 {[%clk 0:01:50]} 25. Nf6# {[%clk 0:02:05]} 1-0


[Site "https://www.chess.com"]

[Event "Titled Tuesday Blitz January 03 Early 2023"]
[White "Dos Santos, Emmanuel"]
[Black "Gjestemoen-VonHirsch, Andre"]
[WhiteFideId "2103559"]
[BlackFideId "1539531"]
[WhiteElo "2261"]
[BlackElo "2314"]
[Result "0-1"]
[Round "06"]
[TimeControl "180+2"]
[Date "2023.01.03"]
[WhiteClock "0:00:15"]
[BlackClock "0:00:10"]

1. Nf3 {[%clk 0:03:00]}  g6 {[%clk 0:02:59]} 2. g3 {[%clk 0:02:59]}  Bg7 {[%clk 0:03:00]} 3. Bg2 {[%clk 0:02:58]}  Nf6 {[%clk 0:03:01]} 4. O-O {[%clk 0:02:59]}  O-O {[%clk 0:03:01]} 5. c4 {[%clk 0:02:53]}  d5 {[%clk 0:02:57]} 6. cxd5 {[%clk 0:02:50]}  Nxd5 {[%clk 0:02:58]} 7. d4 {[%clk 0:02:46]}  Nc6 {[%clk 0:02:54]} 8. Nc3 {[%clk 0:02:29]}  Nb6 {[%clk 0:02:27]} 9. e3 {[%clk 0:02:08]}  e5 {[%clk 0:01:52]} 10. d5 {[%clk 0:02:02]}  Nb4 {[%clk 0:01:50]} 11. e4 {[%clk 0:01:57]}  a5 {[%clk 0:01:31]} 12. a3 {[%clk 0:01:39]}  Na6 {[%clk 0:01:29]} 13. Be3 {[%clk 0:01:38]}  Nc4 {[%clk 0:01:28]} 14. Bc1 {[%clk 0:01:30]}  Nc5 {[%clk 0:01:19]} 15. b3 {[%clk 0:01:28]}  Nd6 {[%clk 0:01:18]} 16. Qc2 {[%clk 0:01:25]}  f5 {[%clk 0:01:03]} 17. Bg5 {[%clk 0:00:49]}  Qe8 {[%clk 0:00:54]} 18. Nd2 {[%clk 0:00:48]}  f4 {[%clk 0:00:17]} 19. b4 {[%clk 0:00:42]}  axb4 {[%clk 0:00:16]} 20. axb4 {[%clk 0:00:43]}  Rxa1 {[%clk 0:00:17]} 21. Rxa1 {[%clk 0:00:43]}  Nd7 {[%clk 0:00:14]} 22. Ra8 {[%clk 0:00:34]}  h6 {[%clk 0:00:14]} 23. gxf4 {[%clk 0:00:22]}  hxg5 {[%clk 0:00:13]} 24. fxg5 {[%clk 0:00:23]}  Qe7 {[%clk 0:00:12]} 25. Bh3 {[%clk 0:00:20]}  Nb6 {[%clk 0:00:11]} 26. Bxc8 {[%clk 0:00:18]}  Nxa8 {[%clk 0:00:11]} 27. Be6+ {[%clk 0:00:18]}  Nf7 {[%clk 0:00:10]} 28. Qd3 {[%clk 0:00:18]}  Nb6 {[%clk 0:00:10]} 29. Qh3 {[%clk 0:00:15]}  Qxg5+ {[%clk 0:00:10]} 30. Kf1 {[%clk 0:00:15]}  Qxd2 {[%clk 0:00:10]} 0-1


[Site "https://www.chess.com"]

[Event "Titled Tuesday Blitz January 03 Early 2023"]
[White "Klinova, Masha"]
[Black "Vasques, Antonio Pedro Freixial"]
[WhiteFideId "2802015"]
[BlackFideId "1908332"]
[WhiteElo "2250"]
[BlackElo "2214"]
[Result "1-0"]
[Round "06"]
[TimeControl "180+2"]
[Date "2023.01.03"]
[WhiteClock "0:00:25"]
[BlackClock "0:00:10"]

1. e4 {[%clk 0:03:00]}  c5 {[%clk 0:02:58]} 2. Nf3 {[%clk 0:03:00]}  Nc6 {[%clk 0:02:58]} 3. Bb5 {[%clk 0:03:00]}  e6 {[%clk 0:02:56]} 4. Bxc6 {[%clk 0:02:59]}  dxc6 {[%clk 0:02:57]} 5. d3 {[%clk 0:02:59]}  g6 {[%clk 0:02:42]} 6. O-O {[%clk 0:02:55]}  Bg7 {[%clk 0:02:42]} 7. Nbd2 {[%clk 0:02:55]}  Ne7 {[%clk 0:02:39]} 8. e5 {[%clk 0:02:54]}  Qc7 {[%clk 0:01:47]} 9. Re1 {[%clk 0:02:52]}  O-O {[%clk 0:01:41]} 10. Ne4 {[%clk 0:02:42]}  Nf5 {[%clk 0:01:34]} 11. Bf4 {[%clk 0:02:38]}  b6 {[%clk 0:00:54]} 12. Qd2 {[%clk 0:02:27]}  a5 {[%clk 0:00:54]} 13. Nf6+ {[%clk 0:02:02]}  Kh8 {[%clk 0:00:40]} 14. g4 {[%clk 0:01:59]}  Nd4 {[%clk 0:00:37]} 15. Nxd4 {[%clk 0:01:58]}  cxd4 {[%clk 0:00:38]} 16. Bh6 {[%clk 0:01:57]}  c5 {[%clk 0:00:27]} 17. Qg5 {[%clk 0:01:53]}  Bb7 {[%clk 0:00:20]} 18. Qh4 {[%clk 0:01:38]}  Rfd8 {[%clk 0:00:20]} 19. Bxg7+ {[%clk 0:01:36]}  Kxg7 {[%clk 0:00:21]} 20. Qxh7+ {[%clk 0:01:36]}  Kf8 {[%clk 0:00:21]} 21. f4 {[%clk 0:01:26]}  Qc6 {[%clk 0:00:20]} 22. Ne4 {[%clk 0:01:25]}  g5 {[%clk 0:00:19]} 23. Qh6+ {[%clk 0:01:23]}  Ke7 {[%clk 0:00:17]} 24. Qxg5+ {[%clk 0:01:23]}  Kd7 {[%clk 0:00:18]} 25. Qf6 {[%clk 0:01:23]}  Re8 {[%clk 0:00:16]} 26. Qxf7+ {[%clk 0:01:19]}  Re7 {[%clk 0:00:16]} 27. Qg6 {[%clk 0:01:06]}  Rf8 {[%clk 0:00:16]} 28. Rf1 {[%clk 0:01:05]}  Kc8 {[%clk 0:00:15]} 29. Rae1 {[%clk 0:01:03]}  Kb8 {[%clk 0:00:16]} 30. g5 {[%clk 0:00:57]}  Rff7 {[%clk 0:00:14]} 31. Re2 {[%clk 0:00:51]}  c4 {[%clk 0:00:14]} 32. h4 {[%clk 0:00:49]}  cxd3 {[%clk 0:00:15]} 33. cxd3 {[%clk 0:00:48]}  Qb5 {[%clk 0:00:15]} 34. Rf3 {[%clk 0:00:47]}  Ka7 {[%clk 0:00:14]} 35. Kf2 {[%clk 0:00:46]}  Rg7 {[%clk 0:00:14]} 36. Qf6 {[%clk 0:00:44]}  Qd5 {[%clk 0:00:13]} 37. h5 {[%clk 0:00:42]}  Ref7 {[%clk 0:00:14]} 38. g6 {[%clk 0:00:33]}  Rxf6 {[%clk 0:00:13]} 39. exf6 {[%clk 0:00:34]}  Rc7 {[%clk 0:00:12]} 40. f7 {[%clk 0:00:33]}  Qf5 {[%clk 0:00:12]} 41. Nd6 {[%clk 0:00:26]}  Qxh5 {[%clk 0:00:10]} 42. Nxb7 {[%clk 0:00:25]}  Qxf3+ {[%clk 0:00:10]} 43. Kxf3 {[%clk 0:00:25]} 1-0


[Site "https://www.chess.com"]